fUSD/lending_fUSD_20251118
["ID","MTS","AMOUNT","RATE_DAILY","PERIOD"]
[394369805,1763500241554,-273.574059,0.00032406,30]
[394369807,1763500241563,-273.574059,0.00032406,30]
[394369809,1763500241573,-151.0,0.00032406,31]
[394369811,1763500241583,-151.0,0.00032406,31]
[394369813,1763500241593,-265.86007,0.00032406,31]
[394369815,1763500241602,-151.0,0.00032406,31]
[394369817,1763500241612,-500.0,0.00032429,30]
[394369819,1763500241622,-1000.0,0.00032441,2]
[394369821,1763500241631,-413.50418596,0.00032456,30]
[394369823,1763500241641,-166.66,0.00032483,30]
[394369825,1763500241651,-12769.49016398,0.00032504,2]
[394369828,1763500241661,-300.0,0.00032533,2]
[394369830,1763500241671,-232.85421513,0.00032536,2]
[394369832,1763500241680,-166.66,0.00032676,2]
[394369834,1763500241689,-297.01930622,0.00032721,5]
[394369836,1763500241699,-714.52050663,0.00032757,2]
[394369838,1763500241710,-151.0,0.00032877,31]
[394369840,1763500241723,-151.0,0.00032877,31]
[394369842,1763500241734,-151.0,0.00032877,31]
[394369844,1763500241744,-151.0,0.00032877,31]
[394369846,1763500241754,-151.0,0.00032877,31]
[394369848,1763500241764,-151.0,0.00032877,31]
[394369850,1763500241773,-151.0,0.00032877,31]
[394369852,1763500241782,-151.0,0.00032877,31]
[394369854,1763500241792,-1470.87788,0.0003298,2]
[394369856,1763500241802,-403.94,0.00033059,30]
[394369858,1763500241811,-164.21329689,0.00033071,5]
[394369860,1763500241821,-187.87,0.00033096,2]
[394369862,1763500241831,-554.45,0.00033165,2]
[394369865,1763500241840,-500.0,0.00033173,5]
[394369867,1763500241850,-151.0,0.00033176,31]
[394369869,1763500241859,-13231.27,0.00033181,2]
[394369871,1763500241869,-150.42,0.00033186,2]
[394369873,1763500241878,-273.574059,0.00033196,30]
[394369875,1763500241888,-273.574059,0.00033196,30]
[394369877,1763500241897,-273.574059,0.00033196,30]
[394369879,1763500241907,-273.574059,0.00033196,30]
[394369881,1763500241917,-151.0,0.00033196,31]
[394369883,1763500241926,-258.022604,0.00033196,31]
[394369885,1763500241936,-151.0,0.00033196,31]
[394369887,1763500241946,-84960.86,0.00033196,2]
[394369889,1763500241956,-150.0,0.00033349,2]
[394369891,1763500241966,-407.98,0.0003335,35]
[394369893,1763500241977,-500.0,0.0003336,5]
[394369896,1763500241986,-157.0,0.000334,14]
[394369898,1763500241996,-8021.58165805,0.00033528,2]
[394369900,1763500242005,-2000.0,0.000336,2]
[394369902,1763500242015,-1000.0,0.00033613,2]
[394369904,1763500242024,-12769.49016398,0.00033614,2]
[394369906,1763500242033,-166.66,0.00033754,2]
[394369908,1763500242044,-351.386362,0.000339,9]
[394369909,1763500242053,-300.0,0.00033903,2]
[394369911,1763500242063,-223.4,0.00033914,2]
[394369914,1763500242073,-1470.87788,0.0003398,2]
[394369916,1763500242085,-714.52050663,0.0003423,2]
[394369918,1763500242095,-416.87,0.00034301,2]
[394369920,1763500242104,-416.87,0.00034301,2]
[394369922,1763500242113,-416.87,0.00034301,2]
[394369924,1763500242123,-832.75,0.00034301,2]
[394369926,1763500242132,-833.74,0.00034301,2]
[394369928,1763500242141,-416.87,0.00034301,2]
[394369930,1763500242151,-833.58,0.00034301,2]
[394369932,1763500242160,-416.87,0.00034301,2]
[394369934,1763500242170,-416.87,0.00034301,2]
[394369936,1763500242179,-416.87,0.00034301,2]
[394369938,1763500242193,-416.87,0.00034301,2]
[394369940,1763500242202,-414.95,0.00034301,2]
[394369942,1763500242212,-609.0,0.00034595,2]
[394369944,1763500242222,-3432.0,0.00034595,2]
[394369946,1763500242232,-813.348,0.00034595,2]
[394369948,1763500242241,-1599.0,0.00034595,2]
[394369950,1763500242251,-821.0,0.00034595,2]
[394369952,1763500242261,-793.0,0.00034595,2]
[394369954,1763500242270,-1273.431,0.00034595,2]
[394369956,1763500242280,-6490.0,0.00034595,2]
[394369958,1763500242290,-1604.0,0.00034595,2]
[394369960,1763500242299,-215.97,0.00034649,2]
[394369962,1763500242308,-8021.58165805,0.00034649,2]
[394369964,1763500242318,-273.574059,0.00034723,30]
[394369966,1763500242327,-273.574059,0.00034723,30]
[394369968,1763500242337,-273.574059,0.00034723,30]
[394369970,1763500242346,-273.574059,0.00034723,30]
[394369972,1763500242356,-151.0,0.00034723,31]
[394369974,1763500242365,-151.0,0.00034723,31]
[394369976,1763500242375,-12769.49016398,0.00034723,2]
[394369978,1763500242384,-245.19,0.00034755,2]
[394369980,1763500242394,-18639.0,0.00034763,2]
[394369982,1763500242403,-1000.0,0.00034786,2]
[394369984,1763500242412,-166.66,0.00034833,2]
[394369986,1763500242422,-215.97,0.00034865,2]
[394369988,1763500242431,-1300.0,0.000349,12]
[394369990,1763500242441,-1470.87789,0.0003498,2]
[394369992,1763500242450,-436.25375408,0.00035,7]
[394369995,1763500242460,-150.0,0.00035088,4]
[394369996,1763500242470,-1419.91153423,0.00035112,30]
[394369999,1763500242479,-207.59697243,0.00035113,2]
[394370001,1763500242488,-215.97,0.00035121,2]
[394370003,1763500242498,-833.42,0.00035134,2]
[394370005,1763500242507,-1072.0,0.00035278,2]
[394370007,1763500242517,-1072.0,0.00035302,7]
[394370009,1763500242526,-1072.0,0.0003532,2]
[394370011,1763500242535,-1074.0,0.00035353,2]
[394370013,1763500242545,-1072.0,0.0003537,2]
[394370015,1763500242554,-157.0,0.000354,14]
[394370017,1763500242564,-603.0,0.000354,7]
[394370019,1763500242573,-286.02164789,0.00035418,5]
[394370021,1763500242583,-153.0,0.00035509,2]
[394370023,1763500242592,-153.0,0.00035509,2]
[394370025,1763500242601,-153.0,0.00035509,2]
[394370027,1763500242611,-153.0,0.00035509,2]
[394370029,1763500242621,-153.0,0.00035509,2]
[394370031,1763500242631,-153.0,0.00035516,2]
[394370033,1763500242640,-153.0,0.00035516,2]
[394370035,1763500242649,-153.0,0.00035516,2]
[394370037,1763500242659,-153.0,0.00035516,2]
[394370039,1763500242668,-153.0,0.00035516,2]
[394370041,1763500242678,-153.0,0.00035516,2]
[394370043,1763500242688,-153.0,0.00035516,2]
[394370045,1763500242697,-153.0,0.00035516,2]
[394370047,1763500242706,-153.0,0.00035516,2]
[394370049,1763500242716,-153.0,0.00035516,2]
[394370051,1763500242726,-153.0,0.00035516,2]
[394370053,1763500242736,-153.0,0.00035516,2]
[394370057,1763500242746,-1072.0,0.00035536,7]
[394370058,1763500242755,-714.52050663,0.00035703,2]
[394370061,1763500242765,-150.42,0.00035761,2]
[394370063,1763500242774,-8021.58165805,0.00035771,2]
[394370065,1763500242784,-12769.49016398,0.00035833,2]
[394370067,1763500242793,-1000.0,0.00035844,2]
[394370069,1763500242803,-2315.0,0.0003585,5]
[394370071,1763500242813,-500.0,0.00035873,5]
[394370073,1763500242822,-500.0,0.00035873,5]
[394370075,1763500242832,-500.0,0.00035873,5]
[394370077,1763500242841,-505.67181755,0.00035873,5]
[394370079,1763500242851,-285.47193993,0.00035873,5]
[394370081,1763500242861,-200.0,0.00035873,5]
[394370083,1763500242870,-413.58495286,0.00035873,5]
[394370084,1763500242879,-200.0,0.000359,12]
[394370085,1763500242889,-166.66,0.00035912,2]
[394370086,1763500242899,-1000.0,0.00035958,2]
[394370087,1763500242908,-1470.87788,0.0003598,2]
[394370088,1763500242918,-5000.0,0.00036028,2]
[394370089,1763500242927,-1072.0,0.00036062,2]
[394370090,1763500242937,-2503.67,0.00036115,2]
[394370091,1763500242947,-4532.55,0.00036124,2]
[394370092,1763500242956,-151.0,0.00036124,31]
[394370093,1763500242966,-151.0,0.00036124,31]
[394370094,1763500242976,-5000.0,0.00036139,2]
[394370095,1763500242985,-273.574059,0.00036149,30]
[394370096,1763500242995,-273.574059,0.00036149,30]
[394370097,1763500243004,-273.574059,0.00036149,30]
[394370098,1763500243013,-273.574058,0.00036149,30]
[394370099,1763500243023,-12971.1811343,0.00036149,5]
[394370100,1763500243032,-5000.0,0.00036155,2]
[394370101,1763500243042,-5000.0,0.00036162,2]
[394370102,1763500243052,-666.0,0.00036271,30]
[394370103,1763500243062,-666.0,0.00036271,30]
[394370104,1763500243072,-25000.0,0.00036272,2]
[394370105,1763500243081,-1712.7425571,0.00036304,2]
[394370106,1763500243091,-9379.6100253,0.00036304,2]
[394370107,1763500243100,-6119.1013757,0.00036304,2]
[394370108,1763500243110,-1072.0,0.00036307,2]
[394370109,1763500243119,-5000.0,0.00036323,2]
[394370110,1763500243129,-500.0,0.00036421,5]
[394370111,1763500243138,-500.0,0.00036421,5]
[394370112,1763500243147,-5000.0,0.00036424,2]
[394370113,1763500243156,-5000.0,0.00036439,2]
[394370114,1763500243166,-1074.0,0.00036451,7]
[394370115,1763500243175,-5000.0,0.00036461,2]
[394370116,1763500243186,-2510.82,0.00036507,2]
[394370117,1763500243197,-2503.67,0.00036507,2]
[394370118,1763500243208,-179.90794168,0.00036508,4]
[394370120,1763500243217,-4114.84,0.00036522,2]
[394370121,1763500243228,-5000.0,0.00036537,2]
[394370122,1763500243237,-5000.0,0.0003654,2]
[394370123,1763500243247,-1660.06,0.00036544,2]
[394370124,1763500243256,-150.42,0.00036546,2]
[394370125,1763500243267,-666.0,0.00036555,30]
[394370126,1763500243276,-666.0,0.00036555,30]
[394370127,1763500243285,-666.0,0.00036555,30]
[394370128,1763500243295,-25000.0,0.00036556,2]
[394370129,1763500243305,-5000.0,0.00036557,2]
[394370130,1763500243314,-400.0,0.00036558,5]
[394370131,1763500243324,-598.56,0.00036584,2]
[394370132,1763500243333,-5000.0,0.00036584,2]
[394370133,1763500243344,-5000.0,0.00036624,2]
[394370134,1763500243353,-929.78,0.00036641,2]
[394370135,1763500243362,-1072.0,0.00036651,7]
[394370136,1763500243372,-2581.98,0.00036673,2]
[394370137,1763500243381,-5000.0,0.00036675,2]
[394370138,1763500243391,-5000.0,0.00036758,2]
[394370139,1763500243401,-500.0,0.00036792,30]
[394370140,1763500243410,-2510.83,0.00036799,2]
[394370141,1763500243420,-666.0,0.0003682,30]
[394370142,1763500243429,-666.0,0.0003682,30]
[394370143,1763500243439,-25000.0,0.00036821,2]
[394370144,1763500243449,-1072.0,0.00036822,120]
[394370145,1763500243459,-3368.16,0.00036853,2]
[394370146,1763500243470,-500.0,0.00036876,30]
[394370147,1763500243480,-509.63641778,0.00036877,30]
[394370148,1763500243489,-25000.0,0.00036878,2]
[394370149,1763500243499,-8021.58165805,0.00036893,2]
[394370150,1763500243509,-5000.0,0.00036932,2]
[394370151,1763500243518,-12769.49016398,0.00036942,2]
[394370152,1763500243528,-1470.87788,0.0003698,2]
[394370153,1763500243537,-166.66,0.0003699,2]
[394370154,1763500243547,-223.4,0.00036999,2]
[394370155,1763500243557,-513.06992934,0.00037057,30]
[394370156,1763500243567,-157.0,0.000371,14]
[394370157,1763500243576,-1072.0,0.00037154,2]
[394370158,1763500243586,-714.52050663,0.00037176,2]
[394370159,1763500243595,-382.164521,0.00037219,2]
[394370160,1763500243604,-2092.873887,0.00037219,2]
[394370161,1763500243614,-1365.3560699,0.00037219,2]
[394370162,1763500243624,-302.62177573,0.00037243,5]
[394370163,1763500243633,-162.9735103,0.00037247,2]
[394370164,1763500243643,-2000.0,0.000373,2]
[394370165,1763500243652,-1000.0,0.000374,7]
[394370166,1763500243662,-1074.0,0.0003749,2]
[394370167,1763500243671,-829.0,0.00037527,7]
[394370168,1763500243680,-1000.0,0.00037534,30]
[394370169,1763500243690,-1000.0,0.00037534,30]
[394370170,1763500243700,-1000.0,0.00037534,30]
[394370171,1763500243709,-1000.0,0.00037534,30]
[394370172,1763500243719,-1000.0,0.00037534,30]
[394370173,1763500243728,-1931.41959476,0.00037534,30]
[394370174,1763500243738,-245.19,0.00037577,2]
[394370175,1763500243747,-150.42,0.00037585,2]
[394370176,1763500243757,-4279.14147366,0.0003759,2]
[394370177,1763500243767,-604.0,0.00037595,2]
[394370178,1763500243776,-3432.0,0.00037595,2]
[394370179,1763500243786,-1599.0,0.00037595,2]
[394370180,1763500243795,-821.0,0.00037595,2]
[394370181,1763500243805,-793.0,0.00037595,2]
[394370182,1763500243814,-6490.0,0.00037595,2]
[394370183,1763500243825,-1604.0,0.00037595,2]
[394370184,1763500243835,-1076.0,0.00037656,7]
[394370185,1763500243845,-448.62816532,0.00037874,2]
[394370186,1763500243855,-183.31760521,0.00037889,30]
[394370187,1763500243864,-1082.22465214,0.00037889,30]
[394370188,1763500243873,-1082.22465214,0.00037899,30]
[394370189,1763500243883,-200.0,0.000379,15]
[394370190,1763500243892,-1072.0,0.00037966,2]
[394370191,1763500243901,-38631.47976125,0.0003797,2]
[394370192,1763500243911,-1074.0,0.00037981,2]
[394370193,1763500243920,-9477.46043834,0.00038,2]
[394370194,1763500243929,-31085.71573705,0.00038,20]
[394370195,1763500243938,-8870.9286421,0.00038,2]
[394370196,1763500243948,-4502.0,0.00038,5]
[394370197,1763500243958,-8021.58165805,0.00038015,2]
[394370198,1763500243967,-1076.0,0.00038021,2]
[394370199,1763500243977,-1072.0,0.00038043,7]
[394370200,1763500243986,-12769.49016398,0.00038052,2]
[394370201,1763500243996,-166.66,0.00038069,2]
[394370202,1763500244005,-1072.0,0.00038095,2]
[394370203,1763500244014,-403.94,0.00038106,30]
[394370204,1763500244023,-1074.0,0.00038123,7]
[394370205,1763500244032,-1072.0,0.00038154,2]
[394370206,1763500244041,-500.0,0.00038194,30]
[394370207,1763500244051,-500.0,0.00038259,30]
[394370208,1763500244060,-1072.0,0.00038301,7]
[394370209,1763500244069,-151.0,0.00038356,120]
[394370210,1763500244078,-150.42,0.0003849,2]
[394370211,1763500244087,-150.42,0.0003849,2]
[394370212,1763500244096,-163.63,0.0003849,2]
[394370213,1763500244105,-448.62816526,0.00038495,2]
[394370214,1763500244114,-255301.59031714,0.000385,2]
[394370215,1763500245295,-225.12187473,0.000264,2]
[394370216,1763500245304,-151.0,0.00034301,2]
[394370217,1763500245314,-134.55438409,0.00034595,2]
[394370218,1763500245326,-16.44561591,0.00034595,2]
[394370219,1763500245335,-684.09220924,0.000385,2]
[394370220,1763500245346,-17810.01878307,0.000385,2]
[394370221,1763500245358,-452.45198606,0.000385,2]
[394370222,1763500246116,-474.56979179,0.00017713,2]
[394370223,1763500246129,-11.05020821,0.00017713,2]
[394370224,1763500246138,-410.21479179,0.000385,2]
[394370226,1763500246385,-485.62,0.00018645,2]
[394370227,1763500246395,-485.62,0.00019577,2]
[394370228,1763500246405,-1738.40385445,0.000385,2]
[394370229,1763500246417,-23448.50802152,0.000385,2]
[394370230,1763500246428,-264.57538388,0.000385,2]
[394370231,1763500246500,-253.52,0.000385,2]
[394370232,1763500246512,-12382.69476121,0.000385,2]
[394370285,1763500457545,296.53334896,0.000164,2]
[394370286,1763500622395,-363.54,0.0002881,30]
[394370287,1763500622422,-583.788,0.00031274,28]
[394370288,1763500622442,-214.2,0.00031507,120]
[394370289,1763500622465,-363.54,0.00033857,30]
[394370290,1763500622487,-157.0,0.000354,14]
[394370291,1763500622510,-274.65106567,0.000372,120]
[394370292,1763500622533,-717.0,0.00037286,120]
[394370293,1763500622554,-500.0,0.00037543,30]
[394370294,1763500622576,-157.0,0.000382,14]
[394370295,1763500622598,-500.0,0.00038334,30]
[394370296,1763500622622,-1074.0,0.00038681,120]
[394370297,1763500622646,-1700.0,0.000388,14]
[394370298,1763500622667,-447.3761,0.00038888,30]
[394370299,1763500622689,-2200.0,0.000389,14]
[394370300,1763500622710,-202.15959692,0.000389,14]
[394370301,1763500622731,-363.54,0.00038904,30]
[394370302,1763500622754,-155.97,0.00038943,120]
[394370303,1763500622775,-7835.0565973,0.0003899,120]
[394370304,1763500622797,-413.7251016,0.00039,30]
[394370305,1763500622819,-155.97,0.00039043,120]
[394370306,1763500622842,-155.97,0.00039143,120]
[394370307,1763500622864,-155.97,0.00039243,120]
[394370308,1763500622886,-156.02,0.00039343,120]
[394370309,1763500622906,-4295.22831621,0.000396,120]
[394370310,1763500622926,-13942.0,0.000398,30]
[394370311,1763500622948,-157.0,0.000398,14]
[394370312,1763500622969,-1082.22465214,0.00039892,30]
[394370313,1763500622990,-500.0,0.00039966,30]
[394370314,1763500623013,-200.0,0.0004,120]
[394370315,1763500623034,-11339.10650136,0.0004,120]
[394370316,1763500623055,-5000.0,0.0004,120]
[394370317,1763500623074,-1008.91301721,0.0004,120]
[394370318,1763500623094,-7878.99,0.0004,14]
[394370319,1763500623116,-1000.0,0.00040106,30]
[394370320,1763500623137,-4660.20410831,0.00040439,15]
[394370321,1763500623160,-500.0,0.00040836,30]
[394370322,1763500623180,-931.49328,0.00040862,50]
[394370323,1763500623200,-4564.3210979,0.000409,120]
[394370324,1763500623222,-400.0,0.000409,14]
[394370325,1763500623241,-10000.0,0.00041,120]
[394370326,1763500623262,-13694.04256538,0.00041,30]
[394370360,1763501005144,638.02,0.00013699,2]
[394370370,1763501214182,5000.00284122,0.000162,5]
[394370383,1763501432155,-300.0,0.00019998,2]
[394370384,1763501432165,-241.2698356,0.00019998,2]
[394370390,1763501432264,-58.7301644,0.00019998,2]
[394370391,1763501432275,-1200.0,0.00019998,2]
[394370392,1763501432285,-550.0,0.00019998,2]
[394370393,1763501432295,-1004.12521198,0.00019999,2]
[394370394,1763501432315,-1200.0,0.00019999,2]
[394370395,1763501432329,-192.52617624,0.00019999,2]
[394370396,1763501432339,-500.0,0.00019999,2]
[394370397,1763501432350,-500.0,0.00019999,2]
[394370398,1763501432359,-500.0,0.00019999,2]
[394370399,1763501432370,-194.5394073,0.00019999,2]
[394370400,1763501432381,-500.0,0.00019999,2]
[394370401,1763501432391,-500.0,0.00019999,2]
[394370402,1763501432401,-500.0,0.00019999,2]
[394370403,1763501432411,-500.0,0.00019999,2]
[394370404,1763501432421,-470.76714691,0.00019999,2]
[394370405,1763501432431,-500.0,0.00019999,2]
[394370406,1763501432442,-500.0,0.00019999,2]
[394370407,1763501432452,-500.0,0.00019999,2]
[394370408,1763501432461,-500.0,0.00019999,2]
[394370409,1763501432471,-500.0,0.00019999,2]
[394370410,1763501432481,-500.0,0.00019999,2]
[394370411,1763501432491,-500.0,0.00019999,2]
[394370412,1763501432501,-639.63846169,0.00019999,2]
[394370413,1763501432510,-500.0,0.00019999,2]
[394370414,1763501432521,-500.0,0.00019999,2]
[394370415,1763501432531,-500.0,0.00019999,2]
[394370416,1763501432543,-500.0,0.00019999,2]
[394370417,1763501432553,-500.0,0.00019999,2]
[394370418,1763501432564,-500.0,0.00019999,2]
[394370419,1763501432573,-500.0,0.00019999,2]
[394370420,1763501432584,-500.0,0.00019999,2]
[394370421,1763501432594,-500.0,0.00019999,2]
[394370422,1763501432604,-500.0,0.00019999,2]
[394370423,1763501432614,-500.0,0.00019999,2]
[394370424,1763501432625,-500.0,0.00019999,2]
[394370425,1763501432635,-500.0,0.00019999,2]
[394370426,1763501432645,-500.0,0.00019999,2]
[394370427,1763501432654,-500.0,0.00019999,2]
[394370428,1763501432669,-500.0,0.00019999,2]
[394370429,1763501432679,-118217.97009745,0.0002,5]
[394370430,1763501432693,-29073.91920827,0.0002,5]
[394370431,1763501432705,-1601.58290649,0.0002,5]
[394370439,1763501438135,-1287.021,0.0002,5]
[394370440,1763501438301,-8708.82457065,0.0002,5]
[394370441,1763501438313,-638.02,0.00020187,2]
[394370442,1763501438323,-300.0,0.00020349,2]
[394370443,1763501438333,-485.62,0.0002051,2]
[394370444,1763501438343,-485.62,0.00021442,2]
[394370445,1763501438353,-420.0,0.00021776,2]
[394370446,1763501438365,-400.0,0.00021777,2]
[394370447,1763501438375,-250.0,0.00022206,2]
[394370448,1763501438385,-300.0,0.00022206,2]
[394370449,1763501438395,-485.62,0.00022374,2]
[394370450,1763501438405,-485.62,0.00023306,2]
[394370451,1763501438415,-1456.91151765,0.00023656,2]
[394370452,1763501438425,-587.0,0.00023711,2]
[394370453,1763501438435,-485.62,0.00024239,2]
[394370454,1763501438445,-160.16,0.00024643,2]
[394370455,1763501438454,-485.62,0.00025171,2]
[394370456,1763501438464,-823.0,0.00025819,2]
[394370457,1763501438474,-5000.0,0.00025992,2]
[394370458,1763501438484,-485.62,0.00026103,2]
[394370459,1763501438495,-225.81,0.00026362,2]
[394370460,1763501438504,-638.02,0.00026676,2]
[394370461,1763501438514,-191.73,0.00026926,2]
[394370462,1763501438524,-485.62,0.00027035,2]
[394370463,1763501438535,-288.3886721,0.00027465,2]
[394370464,1763501438548,-8117.77,0.00027945,2]
[394370465,1763501438559,-485.62,0.00027968,2]
[394370466,1763501438568,-10068.18,0.00027976,2]
[394370467,1763501438578,-1152.0,0.00028114,2]
[394370468,1763501438589,-403.46,0.00028275,2]
[394370469,1763501438599,-1000.0,0.0002852,2]
[394370470,1763501438610,-604.9736585,0.00028576,2]
[394370471,1763501438622,-552.82,0.00028648,2]
[394370472,1763501438632,-999.0,0.00028681,3]
[394370473,1763501438643,-485.62,0.000289,2]
[394370474,1763501438653,-215.18188196,0.00029018,2]
[394370475,1763501438663,-760000.0,0.00029018,2]
[394370476,1763501438673,-78266.7,0.00029118,2]
[394370477,1763501438683,-173.2,0.00029283,14]
[394370478,1763501438693,-23239.60059565,0.00029285,2]
[394370479,1763501438703,-173.2,0.00029557,14]
[394370480,1763501438713,-150.0,0.00029699,2]
[394370481,1763501438723,-225.81,0.00029786,2]
[394370482,1763501438734,-11982.1984756,0.00029805,3]
[394370483,1763501438744,-7215.59,0.00029815,2]
[394370484,1763501438754,-150.99,0.00029815,2]
[394370485,1763501438765,-173.2,0.00029831,14]
[394370486,1763501438778,-485.62,0.00029832,2]
[394370487,1763501438788,-300.0,0.000299,7]
[394370488,1763501438798,-300.0,0.000299,7]
[394370489,1763501438810,-11982.1984756,0.0002999,3]
[394370490,1763501438821,-234.54625062,0.0002999,2]
[394370491,1763501438832,-23600.41970575,0.0003,2]
[394370492,1763501438842,-1796.45829375,0.0003,2]
[394370493,1763501438853,-4600.66442657,0.0003,2]
[394370494,1763501438863,-161.13921931,0.0003,2]
[394370495,1763501438873,-300.0,0.00030037,7]
[394370496,1763501438883,-200.0,0.0003013,2]
[394370497,1763501438893,-150.0,0.0003019,2]
[394370498,1763501438903,-150.0,0.0003019,2]
[394370499,1763501438913,-1000.0,0.00030336,2]
[394370500,1763501438923,-1613.0,0.00030613,2]
[394370501,1763501438933,-485.62,0.00030764,2]
[394370502,1763501438943,-11538.53583078,0.0003095,2]
[394370503,1763501438953,-151.0,0.0003095,31]
[394370504,1763501438962,-151.0,0.0003095,31]
[394370505,1763501438972,-2406.47449746,0.00031164,2]
[394370506,1763501438982,-267.94519003,0.00031164,2]
[394370507,1763501438993,-215.18188196,0.00031164,4]
[394370508,1763501439003,-151.0,0.00031165,31]
[394370509,1763501439013,-151.0,0.00031165,31]
[394370510,1763501439023,-187.304561,0.00031165,31]
[394370511,1763501439035,-151.0,0.00031165,31]
[394370512,1763501439045,-151.0,0.00031165,31]
[394370513,1763501439055,-151.0,0.00031165,31]
[394370514,1763501439065,-151.0,0.00031165,30]
[394370515,1763501439075,-11982.1984756,0.00031165,3]
[394370516,1763501439086,-572.16733292,0.00031175,2]
[394370517,1763501439097,-166.66,0.0003119,2]
[394370518,1763501439107,-150.42,0.00031245,2]
[394370519,1763501439117,-314.1233647,0.00031245,2]
[394370520,1763501439127,-47821.54466989,0.00031254,3]
[394370521,1763501440235,-151.0,0.00031165,30]
[394370522,1763501440245,-7449.08,0.00031254,3]
[394370523,1763501440401,-932.47,0.00031254,3]
[394370525,1763501440413,-8841.5708349,0.00031254,3]
[394370567,1763501443360,-1345.88845418,0.00031254,3]
[394370570,1763501443587,-5265.3587318,0.00031254,3]
[394370572,1763501443599,-1407.78438435,0.00031254,3]
[394370577,1763501443643,-10335.26202311,0.00031254,3]
[394370580,1763501443655,-1058.32946893,0.00031254,3]
[394370582,1763501443667,-497.88378513,0.00031254,3]
[394370583,1763501443678,-1108.88047643,0.00031254,3]
[394370584,1763501443690,-508.01591434,0.00031254,3]
[394370585,1763501443701,-820.02695401,0.00031254,3]
[394370586,1763501446347,-271.3,0.00027741,2]
[394370587,1763501446357,-587.7,0.00031254,3]
[394370588,1763501446556,-6861.9242967,0.00031254,3]
[394370589,1763501446567,-11101.18653526,0.00031254,3]
[394370590,1763501446578,-533.76,0.00031254,3]
[394370592,1763501456612,250.0,0.00017,2]
[394370594,1763501522467,195.0,0.00021999,120]
[394370595,1763501527502,500.0,0.00041692,30]
[394370598,1763501589544,406.0,0.00041692,30]
[394370604,1763501729672,1000.0,0.00041695,30]
[394370609,1763501823236,194.78840876,0.00030127,120]
[394370727,1763502631359,-2891.87960734,0.00022,2]
[394370729,1763502631420,-323.44091325,0.00022,2]
[394370730,1763502631433,-933.17157974,0.00022,2]
[394370731,1763502631442,-250.0,0.000242,2]
[394370732,1763502631452,-2869.93,0.00027388,2]
[394370733,1763502631461,-166.66,0.00028489,30]
[394370734,1763502631471,-1200.0,0.00029013,2]
[394370735,1763502631480,-252.0,0.00029014,2]
[394370736,1763502631490,-1200.0,0.00029015,2]
[394370737,1763502631499,-300.0,0.00029015,2]
[394370739,1763502631512,-300.0,0.00029015,2]
[394370740,1763502631522,-300.0,0.00029015,2]
[394370741,1763502631531,-375.30351031,0.00029017,30]
[394370742,1763502631543,-124.69648969,0.00029017,30]
[394370743,1763502631553,-481.01610602,0.00029017,30]
[394370744,1763502631565,-116.34614174,0.00029017,30]
[394370745,1763502631574,-166.66,0.00029089,30]
[394370746,1763502631584,-500.0,0.00029316,2]
[394370747,1763502631594,-166.66,0.00029688,30]
[394370748,1763502631604,-300.0,0.00029757,7]
[394370749,1763502631615,-300.0,0.00029757,7]
[394370751,1763502631625,-197.21,0.00029772,2]